bitfinex/quotes_ETHUSD_20240924
["timestamp","ask_amount","ask_price","bid_price","bid_amount"]
[1727201287856,3.76947,2652.9,2652.4,0.0550113]
[1727201288470,7.17361202,2652.9,2652.4,0.0550113]
[1727201288970,7.17361202,2652.9,2652.4,3.8251613]
[1727201289177,3.7696,2652.8,2652.4,0.0550113]
[1727201289332,7.17361202,2652.9,2652.4,0.0550113]
[1727201289533,7.17361202,2652.9,2652.4,3.8251713]
[1727201290632,3.76947,2652.9,2652.4,3.8251713]
[1727201290828,24.32425,2653.1,2652.5,0.7794]
[1727201291063,3.76936,2653.0,2652.5,0.7794]
[1727201291242,3.76936,2653.0,2652.6,0.05505664]
[1727201291430,3.76947,2652.9,2652.6,0.05505664]
[1727201291631,5.94511841,2652.9,2652.6,0.05505664]
[1727201291927,20.555,2653.1,2652.6,0.05505664]
[1727201292165,3.76968,2652.8,2652.6,0.05505664]
[1727201292370,3.76968,2652.8,2652.5,0.7794]
[1727201292581,3.76948,2652.9,2652.5,0.7794]
[1727201292759,3.76948,2652.9,2652.6,0.05505664]
[1727201292964,4.27582238,2652.9,2652.6,0.05505664]
[1727201293276,3.7696,2652.8,2652.6,0.05505664]
[1727201293878,0.50634238,2652.9,2652.4,3.77016]
[1727201294040,4.54689,2653.0,2652.7,0.05503804]
[1727201294375,20.555,2653.1,2652.7,3.76966]
[1727201294550,20.555,2653.1,2652.8,0.7794]
[1727201294747,20.555,2653.1,2652.8,0.83452139]
[1727201295977,20.555,2653.1,2653.0,3.76931]
[1727201296389,20.555,2653.1,2653.0,3.8243942]
[1727201299270,20.555,2653.1,2653.0,4.66171762]
[1727201299493,20.555,2653.1,2653.0,5.44111762]
[1727201301711,20.555,2653.1,2653.0,4.6037942]
[1727201306038,20.555,2653.1,2653.0,0.0550842]
[1727201306402,20.555,2653.1,2652.2,3.8088368]
[1727201306403,3.76961,2652.8,2652.4,3.77007]
[1727201307635,4.95174421,2652.8,2652.5,0.05305192]
[1727201307837,3.76976,2652.7,2652.5,0.05305192]
[1727201308234,4.95189421,2652.7,2652.2,0.0384668]
[1727201308407,3.76997,2652.6,2652.2,0.0384668]
[1727201308742,1.18213421,2652.6,2652.3,0.05322989]
[1727201308948,5.91294989,2652.6,2652.3,0.05322989]
[1727201309446,1.18213421,2652.6,2652.3,0.05322989]
[1727201309641,1.18213421,2652.7,2652.3,3.82339989]
[1727201310145,1.18213421,2652.6,2652.3,3.82339989]
[1727201310448,1.18213421,2652.7,2652.3,3.82339989]
[1727201310755,1.18213421,2652.6,2652.3,3.82339989]
[1727201310950,5.34584895,2652.8,2652.3,3.82339989]
[1727201310951,1.18213421,2652.7,2652.3,3.82339989]
[1727201312252,1.18213421,2652.6,2652.3,3.82339989]
[1727201313152,1.18213421,2652.5,2652.3,0.05322989]
[1727201313756,1.18213421,2652.5,2652.2,0.0384668]
[1727201314118,1.18213421,2652.5,2652.3,0.05370557]
[1727201314861,1.18213421,2652.5,2652.2,0.0384668]
[1727201315241,1.18213421,2652.5,2652.3,0.05370557]
[1727201315748,1.18213421,2652.5,2652.2,0.0384668]
[1727201316261,1.18213421,2652.5,2652.3,0.05370557]
[1727201316418,3.77017,2652.4,2652.3,0.05370557]
[1727201316619,1.18213421,2652.5,2652.2,0.0384668]
[1727201316856,1.75599791,2652.5,2652.3,0.05370557]
[1727201317060,5.52610791,2652.5,2652.3,0.05370557]
[1727201317245,1.18213421,2652.4,2652.3,0.05370557]
[1727201317970,5.73890421,2652.4,2652.3,0.05370557]
[1727201318262,1.96873421,2652.4,2652.3,0.05370557]
[1727201318928,0.96873421,2652.4,2652.2,0.0384668]
[1727201319125,0.96873421,2652.4,2652.3,0.05372013]
[1727201319330,0.96873421,2652.4,2652.2,0.0384668]
[1727201319568,0.96873421,2652.4,2652.3,0.05372013]
[1727201319954,0.96873421,2652.4,2652.2,0.0384668]
[1727201320438,0.96873421,2652.4,2652.3,0.05372013]
[1727201320763,0.96873421,2652.4,2652.2,0.0384668]
[1727201321169,0.96873421,2652.4,2652.3,0.05372013]
[1727201321530,0.96873421,2652.4,2652.2,0.0384668]
[1727201321744,0.96873421,2652.4,2652.3,0.0537347]
[1727201321989,0.18213421,2652.4,2652.2,0.0384668]
[1727201322455,0.18213421,2652.4,2652.3,0.0537347]
[1727201322794,0.7866,2652.3,2652.2,0.0384668]
[1727201322961,6.53277051,2652.3,2652.2,0.0384668]
[1727201323163,7.55691,2652.3,2652.2,0.0384668]
[1727201323490,10.47794261,2652.3,2652.2,0.0384668]
[1727201323691,12.70397913,2652.3,2652.2,0.0384668]
[1727201323991,10.33294652,2652.3,2652.2,0.0384668]
[1727201324493,13.09915124,2652.3,2652.2,0.0384668]
[1727201324792,10.33294652,2652.3,2652.2,0.0384668]
[1727201324962,13.09915124,2652.3,2652.2,0.0384668]
[1727201325351,4.3366,2652.2,2651.4,0.0384668]
[1727201325668,3.77136,2651.6,2651.4,0.0384668]
[1727201326199,3.77136,2651.6,2651.5,0.05047153]
[1727201327148,4.55796,2651.6,2651.5,0.05047153]
[1727201327700,6.77145,2651.5,2651.4,0.0384668]
[1727201327878,11.06981593,2651.5,2651.4,0.0384668]
[1727201328051,12.889444,2651.5,2651.4,0.0384668]
[1727201328249,14.8641563,2651.5,2651.4,0.0384668]
[1727201329506,15.4141563,2651.5,2651.4,0.0384668]
[1727201329707,13.439444,2651.5,2651.4,0.0384668]
[1727201330797,14.46497513,2651.5,2651.4,0.0384668]
[1727201330953,7.55805,2651.5,2651.4,0.0384668]
[1727201331152,8.73965634,2651.5,2651.4,0.0384668]
[1727201331556,7.55805,2651.5,2651.4,0.0384668]
[1727201331978,4.55805,2651.5,2651.4,0.0384668]
[1727201332155,3.77145,2651.5,2651.4,0.0384668]
[1727201332565,3.77145,2651.5,2651.4,0.0883566]
[1727201333156,3.77145,2651.5,2651.4,0.0384668]
[1727201333493,5.03700265,2651.5,2651.4,0.0384668]
[1727201335097,8.85340265,2651.5,2651.4,0.0384668]
[1727201336066,10.58500899,2651.5,2651.4,0.0384668]
[1727201336272,9.40340265,2651.5,2651.4,0.0384668]
[1727201336501,10.58304214,2651.5,2651.4,0.0384668]
[1727201336715,9.40340265,2651.5,2651.4,0.0384668]
[1727201337577,10.58266065,2651.5,2651.4,0.0384668]
[1727201337783,10.97892294,2651.5,2651.4,0.0384668]
[1727201337983,14.48550145,2651.5,2651.4,0.0384668]
[1727201338614,5.85340265,2651.5,2651.4,0.0384668]
[1727201339815,12.51811284,2651.5,2651.4,0.0384668]
[1727201340696,13.69700571,2651.5,2651.4,0.0384668]
[1727201341449,12.51811284,2651.5,2651.4,0.0384668]
[1727201343349,13.69700571,2651.5,2651.4,0.0384668]
[1727201343557,12.51811284,2651.5,2651.4,0.0384668]
[1727201343902,10.67859019,2650.7,2650.6,0.0384668]
[1727201344154,11.22859019,2650.7,2650.6,0.0384668]
[1727201346607,7.56388,2650.7,2650.6,0.0384668]
[1727201347135,3.77258,2650.7,2650.6,0.0384668]
[1727201347710,3.77258,2650.7,2650.6,0.08929198]
[1727201348933,11.19179419,2650.7,2650.6,0.08929198]
[1727201349140,11.98309419,2650.7,2650.6,0.0384668]
[1727201355257,7.527084,2650.7,2650.6,0.0384668]
[1727201355430,6.77258,2650.7,2650.6,0.0384668]
[1727201356102,6.77258,2650.7,2650.6,0.08968538]
[1727201356280,6.77258,2650.7,2650.6,0.0384668]
[1727201356479,6.77258,2650.7,2650.6,0.08968538]
[1727201356788,8.13855502,2650.7,2650.6,0.08968538]
[1727201357478,8.13855502,2650.7,2650.6,0.0384668]
[1727201358566,8.13855502,2650.7,2650.6,0.08968538]
[1727201359604,8.13855502,2650.7,2650.6,0.0384668]
[1727201359802,6.77258,2650.7,2650.6,0.08968538]
[1727201362195,7.32258,2650.7,2650.6,0.0384668]
[1727201363251,0.39395494,2652.7,2650.6,0.0384668]
[1727201363252,1.17816834,2651.2,2650.7,0.7728]
[1727201363393,0.7913,2651.3,2650.7,0.7728]
[1727201363394,6.77239,2650.9,2650.7,0.7728]
[1727201363589,3.77223,2651.0,2650.7,0.7728]
[1727201363590,3.77244,2650.8,2650.7,0.7728]
[1727201367656,3.77244,2650.8,2650.7,0.05106879]
[1727201368645,4.95060834,2650.8,2650.7,0.05106879]
[1727201369663,3.77244,2650.8,2650.7,0.05106879]
[1727201370229,4.956723,2650.8,2650.7,0.05106879]
[1727201370423,3.77244,2650.8,2650.7,0.05106879]
[1727201370625,5.34333112,2650.8,2650.7,0.05106879]
[1727201370814,1.57089112,2650.8,2650.7,0.05106879]
[1727201371117,1.18458644,2651.1,2650.9,3.7723]
[1727201371313,1.18458644,2651.2,2651.0,0.37723]
[1727201371520,1.18458644,2651.3,2651.1,0.7728]
[1727201371823,1.18458644,2651.3,2651.2,0.05080089]
[1727201372028,1.18460009,2651.3,2651.2,0.05080089]
[1727201372231,5.34257112,2651.4,2651.2,0.05080089]
[1727201372443,1.57089112,2651.3,2651.2,0.05080089]
[1727201372745,6.88644019,2651.3,2651.2,0.05080089]
[1727201372945,3.77235,2650.9,2650.6,0.0384668]
[1727201373132,4.95757009,2650.8,2650.6,0.0384668]
[1727201373461,4.95757009,2650.8,2650.7,0.0504618]
[1727201373958,5.35307148,2650.8,2650.7,0.0504618]
[1727201374114,5.04059117,2650.8,2650.7,0.0504618]
[1727201374335,7.01564132,2650.8,2650.7,0.0504618]
[1727201375339,7.01564132,2650.8,2650.6,0.0384668]
[1727201375535,1.58079455,2650.7,2650.6,0.0384668]
[1727201375763,5.35323455,2650.8,2650.6,0.0384668]
[1727201376071,1.18553836,2650.7,2650.6,0.0384668]
[1727201376237,1.58079455,2650.7,2650.6,0.0384668]
[1727201376432,6.11427455,2650.7,2650.6,0.0384668]
[1727201376635,6.03112749,2650.7,2650.6,0.0384668]
[1727201376840,9.03112749,2650.7,2650.6,0.0384668]
[1727201377662,12.3444533,2650.7,2650.6,0.0384668]
[1727201377979,9.58112749,2650.7,2650.6,0.0384668]
[1727201380138,15.82012749,2650.7,2650.6,0.0384668]
[1727201380334,18.93483768,2650.7,2650.6,0.0384668]
[1727201380626,13.30543356,2650.7,2650.6,0.0384668]
[1727201380760,11.84612749,2650.7,2650.6,0.0384668]
[1727201381344,15.74509808,2650.7,2650.6,0.0384668]
[1727201381888,18.85980827,2650.7,2650.6,0.0384668]
[1727201382190,15.83979905,2650.7,2650.6,0.0384668]
[1727201382421,16.68950924,2650.7,2650.6,0.0384668]
[1727201382988,16.68950924,2650.7,2649.8,0.0384668]
[1727201382989,6.77372,2649.9,2649.8,0.0384668]
[1727201383213,9.14650749,2649.9,2649.8,0.0384668]
[1727201383552,9.14612385,2649.9,2649.8,0.0384668]
[1727201383792,7.32372,2649.9,2649.8,0.0384668]
[1727201384366,6.77372,2649.9,2649.8,0.0384668]
[1727201384558,8.49279247,2649.9,2649.8,0.0384668]
[1727201384960,9.25369247,2649.9,2649.8,0.0384668]
[1727201385296,9.80369247,2649.9,2649.8,0.0384668]
[1727201385456,12.57149696,2649.9,2649.8,0.0384668]
[1727201385806,9.80369247,2649.9,2649.8,0.0384668]
[1727201387177,12.56923967,2649.9,2649.8,0.0384668]
[1727201387692,9.80369247,2649.9,2649.8,0.0384668]
[1727201388056,12.56926699,2649.9,2649.8,0.0384668]
[1727201388296,9.80369247,2649.9,2649.8,0.0384668]
[1727201388787,13.07316153,2649.9,2649.8,0.0384668]
[1727201389168,9.80369247,2649.9,2649.8,0.0384668]
[1727201389576,13.07316153,2649.9,2649.8,0.0384668]
[1727201390000,9.80369247,2649.9,2649.8,0.0384668]
[1727201390173,9.80369247,2649.9,2649.0,0.0384668]
[1727201390174,6.77486,2649.1,2649.0,0.0384668]
[1727201390491,12.41322062,2649.1,2649.0,0.0384668]
[1727201391700,8.90299229,2649.1,2649.0,0.0384668]
[1727201392165,7.32486,2649.1,2649.0,0.0384668]
[1727201392492,12.01712812,2649.1,2649.0,0.0384668]
[1727201392694,13.79367898,2649.1,2649.0,0.0384668]
[1727201393960,9.73415568,2649.1,2649.0,0.0384668]
[1727201394155,9.73415568,2649.1,2649.0,0.8400668]
[1727201394156,6.77486,2649.1,2649.0,0.8400668]
[1727201394574,6.77486,2649.1,2649.0,0.08767918]
[1727201394893,8.35241793,2649.1,2649.0,0.0384668]
[1727201395459,8.90241793,2649.1,2649.0,0.0384668]
[1727201395660,9.68191793,2649.1,2649.0,0.0384668]
[1727201395860,12.15715375,2649.1,2649.0,0.0384668]
[1727201396065,10.18519199,2649.1,2649.0,0.0384668]
[1727201397275,12.15400206,2649.1,2649.0,0.0384668]
[1727201397880,10.18519199,2649.1,2649.0,0.0384668]
[1727201398091,12.1540225,2649.1,2649.0,0.0384668]
[1727201398299,10.18519199,2649.1,2649.0,0.0384668]
[1727201398719,12.1540225,2649.1,2649.0,0.0384668]
[1727201399318,14.41759349,2649.1,2649.0,0.0384668]
[1727201399520,12.45019199,2649.1,2649.0,0.0384668]
[1727201399690,9.89071019,2648.3,2648.2,0.0384668]
[1727201400021,10.44071019,2648.3,2648.2,0.0384668]
[1727201400224,12.40080673,2648.3,2648.2,0.0384668]
[1727201400540,12.40080673,2648.3,2647.4,0.0339416]
[1727201400541,3.77714,2647.5,2647.4,0.0339416]
[1727201400679,9.89185019,2647.5,2647.4,0.0339416]
[1727201400878,3.0,2647.5,2647.4,0.0339416]
[1727201401081,3.77687,2647.7,2647.5,0.8016]
[1727201401528,3.0,2647.8,2647.5,0.8016]
[1727201401748,3.0,2647.8,2647.4,0.0339416]
[1727201401749,3.77714,2647.5,2647.4,0.0339416]
[1727201404090,3.77696,2647.7,2647.4,0.8355416]
[1727201404301,3.77714,2647.5,2647.4,0.8355416]
[1727201404927,3.77714,2647.5,2647.4,0.0339416]
[1727201406832,3.0,2647.8,2647.5,0.7606]
[1727201407121,13.0698,2648.6,2647.5,0.7606]
[1727201407122,3.77576,2648.5,2647.5,0.7606]
[1727201407333,3.77651,2648.0,2647.6,0.04451827]
[1727201407629,3.77649,2648.0,2647.6,0.04451827]
[1727201408192,0.7798,2648.8,2647.8,0.7606]
[1727201408400,2.08083199,2649.1,2648.3,0.7606]
[1727201408401,3.77555,2648.7,2648.3,0.7606]
[1727201408598,3.77568,2648.6,2648.3,0.7606]
[1727201408886,3.77568,2648.6,2648.4,0.0442183]
[1727201409317,3.77557,2648.7,2648.4,0.0442183]
[1727201409523,3.77572,2648.5,2648.4,0.0442183]
[1727201410845,4.530849,2648.5,2648.4,0.0442183]
[1727201411122,3.7763,2648.1,2647.8,0.7606]
[1727201411497,3.77657,2647.9,2647.8,0.7606]
[1727201412036,7.55275,2648.1,2647.8,0.7606]
[1727201412245,3.77633,2648.1,2647.8,0.7606]
[1727201412537,7.55274,2648.1,2647.9,0.04410264]
[1727201412732,3.77633,2648.1,2647.9,0.04410264]
[1727201413095,3.77643,2648.0,2647.9,0.04410264]
[1727201414334,0.7798,2648.7,2647.9,0.04410264]
[1727201414335,3.77622,2648.2,2647.9,0.04410264]
[1727201415497,3.77596,2648.4,2647.9,0.04410264]
[1727201415732,3.7762,2648.2,2647.9,0.04410264]
[1727201416597,3.77595,2648.4,2648.0,0.7606]
[1727201416802,14.15534,2648.8,2648.2,3.77613]
[1727201417002,3.77553,2648.7,2648.3,0.7606]
[1727201417532,3.77534,2648.8,2648.4,0.04400935]
[1727201418601,3.77545,2648.7,2648.5,0.8084]
[1727201418802,3.77557,2648.6,2648.5,0.8084]
[1727201419216,3.77607,2648.3,2648.0,0.8084]
[1727201419913,3.77629,2648.1,2648.0,0.8084]
[1727201420336,3.777,2647.6,2647.5,0.8084]
[1727201421546,3.77682,2647.8,2647.5,0.8084]
[1727201421547,7.55366,2647.8,2647.5,0.8084]
[1727201421716,3.777,2647.6,2647.5,0.8084]
[1727201422055,3.77714,2647.5,2647.4,0.0339416]
[1727201422344,3.777,2647.6,2647.4,0.0339416]
[1727201423200,3.77714,2647.5,2647.4,0.0339416]
[1727201424139,3.777,2647.6,2647.4,0.0339416]
[1727201424343,3.77714,2647.5,2647.4,0.0339416]
[1727201425015,3.777,2647.6,2647.4,0.0339416]
[1727201425221,3.77714,2647.5,2647.4,0.0339416]
[1727201426009,3.777,2647.6,2647.4,0.0339416]
[1727201426249,6.77673,2647.8,2647.4,0.0339416]
[1727201426657,3.77646,2648.0,2647.5,0.8084]
[1727201426839,7.38,2648.3,2647.6,0.50592829]
[1727201427008,3.7759,2648.4,2647.6,0.04396913]
[1727201427009,3.77665,2647.9,2647.6,0.04396913]
[1727201427209,3.77665,2647.9,2647.5,0.8084]
[1727201427210,3.77665,2647.9,2647.7,0.04395046]
[1727201427640,3.77665,2647.9,2647.5,0.8084]
[1727201428150,3.77673,2647.8,2647.6,0.04396913]
[1727201428951,3.0,2648.0,2647.6,0.04396913]
[1727201429111,3.77659,2647.9,2647.6,0.04396913]
[1727201429507,3.0,2648.0,2647.6,0.04396913]
[1727201429508,3.77686,2647.7,2647.6,0.04396913]
[1727201429932,3.77686,2647.7,2647.4,0.0339416]
[1727201430136,3.77714,2647.5,2647.4,0.0339416]
[1727201430316,3.77701,2647.6,2647.5,0.04425019]
[1727201430648,3.77701,2647.6,2647.4,0.0339416]
[1727201430845,3.77714,2647.5,2647.4,0.0339416]
[1727201431058,3.77665,2647.9,2647.4,0.0339416]
[1727201431344,3.0,2647.8,2647.4,0.0339416]
[1727201431911,3.0,2647.8,2647.4,3.8111616]
[1727201433009,6.77674,2647.8,2647.4,3.8111616]
[1727201433222,6.77674,2647.8,2647.4,0.0339416]
[1727201434219,3.0,2647.8,2647.4,0.0339416]
[1727201434548,7.95744627,2647.9,2647.4,0.0339416]
[1727201434706,4.18075627,2647.9,2647.6,0.8256]
[1727201434913,4.95733627,2647.9,2647.6,0.8256]
[1727201436416,1.18075627,2648.1,2647.8,0.8256]
[1727201436726,1.18075627,2648.2,2647.8,0.8256]
[1727201436915,3.77637,2648.1,2647.8,0.8256]
[1727201437125,1.18075627,2648.1,2647.8,0.82319038]
[1727201437521,1.18075627,2648.1,2647.9,0.08342752]
[1727201438366,7.58134,2647.5,2647.4,0.0339416]
[1727201438587,9.95483635,2647.5,2647.4,0.0339416]
[1727201438727,7.58134,2647.5,2647.4,0.0339416]
[1727201438927,9.95443708,2647.5,2647.4,0.0339416]
[1727201439163,11.6044907,2647.5,2647.4,0.0339416]
[1727201439461,9.78139362,2647.5,2647.4,0.0339416]
[1727201440158,9.23139362,2647.5,2647.4,0.0339416]
[1727201440363,11.60462732,2647.5,2647.4,0.0339416]
[1727201440921,10.80042732,2647.5,2647.4,0.0339416]
[1727201441360,8.42719362,2647.5,2647.4,0.0339416]
[1727201441543,10.80006681,2647.5,2647.4,0.0339416]
[1727201441744,8.42719362,2647.5,2647.4,0.0339416]
[1727201441946,8.97719362,2647.5,2647.4,0.0339416]
[1727201442170,9.78139362,2647.5,2647.4,0.0339416]
[1727201443728,9.23139362,2647.5,2647.4,0.0339416]
[1727201444062,6.77714,2647.5,2647.4,0.0339416]
[1727201449604,7.56904,2647.5,2647.4,0.0339416]
[1727201450590,8.11904,2647.5,2647.4,0.0339416]
[1727201450799,11.97043147,2647.5,2647.4,0.0339416]
[1727201451007,14.73718615,2647.5,2647.4,0.0339416]
[1727201451205,14.29538426,2647.5,2647.4,0.0339416]
[1727201451541,17.56361323,2647.5,2647.4,0.0339416]
[1727201451688,14.29538426,2647.5,2647.4,0.0339416]
[1727201453108,17.56188824,2647.5,2647.4,0.0339416]
[1727201453349,14.29538426,2647.5,2647.4,0.0339416]
[1727201453922,10.44399279,2647.5,2647.4,0.0339416]
[1727201455133,13.70898039,2647.5,2647.4,0.0339416]
[1727201455876,10.44399279,2647.5,2647.4,0.0339416]
[1727201456078,13.70898039,2647.5,2647.4,0.0339416]
[1727201456578,10.44399279,2647.5,2647.4,0.0339416]
[1727201457555,13.15898039,2647.5,2647.4,0.0339416]
[1727201457755,9.89399279,2647.5,2647.4,0.0339416]
[1727201458980,10.44399279,2647.5,2647.4,0.0339416]
[1727201459196,6.89399279,2647.5,2647.4,0.0339416]
[1727201459393,3.77714,2647.5,2647.4,0.0339416]
[1727201459706,5.75019352,2647.5,2647.4,0.0339416]
[1727201459985,5.35551707,2647.5,2647.4,0.0339416]
[1727201460891,3.77714,2647.5,2647.4,0.0339416]
[1727201461504,6.77714,2647.5,2647.4,0.0339416]
[1727201461685,8.35577669,2647.5,2647.4,0.0339416]
[1727201462077,7.96105881,2647.5,2647.4,0.0339416]
[1727201462405,6.77714,2647.5,2647.4,0.0339416]
[1727201462710,4.9612228,2647.5,2647.4,0.8388416]
[1727201463006,4.9612228,2647.5,2647.4,0.8049]
[1727201463204,3.77714,2647.5,2647.4,0.87095978]
[1727201463561,3.77714,2647.5,2647.4,0.8049]
[1727201463781,3.77744,2647.3,2647.2,0.7819]
[1727201464961,4.96201015,2647.3,2647.2,0.7819]
[1727201466501,1.18545312,2647.3,2647.2,0.7819]
[1727201466656,4.18545312,2647.5,2647.2,0.7819]
[1727201466862,1.18545312,2647.5,2647.4,0.7819]
[1727201467163,4.18545312,2647.6,2647.4,0.84795492]
[1727201467494,4.18545312,2647.6,2647.4,1.66984235]
[1727201467702,1.18545312,2647.7,2647.5,0.7819]
[1727201467885,1.18545312,2647.7,2647.5,3.98007865]
[1727201468066,1.18545312,2647.7,2647.6,0.7819]
[1727201468262,5.35536669,2647.8,2647.6,1.32954842]
[1727201468263,4.96218312,2647.8,2647.6,1.32954842]
[1727201468469,3.77686,2647.7,2647.6,0.84791465]
[1727201468711,4.96218312,2647.8,2647.6,0.84791465]
[1727201469208,4.96218312,2647.8,2647.6,0.86228625]
[1727201469384,3.77686,2647.7,2647.6,0.86228625]
[1727201469908,4.96231312,2647.7,2647.6,0.86228625]
[1727201471106,4.96231312,2647.7,2647.1,0.038473]
[1727201471107,6.77757,2647.2,2647.1,0.038473]
[1727201471313,8.75349027,2647.2,2647.1,0.038473]
[1727201471467,9.14867433,2647.2,2647.1,0.038473]
[1727201471664,9.14893059,2647.2,2647.1,0.038473]
[1727201471902,10.71822639,2647.2,2647.1,0.038473]
[1727201472965,11.52942639,2647.2,2647.1,0.038473]
[1727201473169,12.07942639,2647.2,2647.1,0.038473]
[1727201473473,12.47465316,2647.2,2647.1,0.038473]
[1727201474125,9.7080658,2647.2,2647.1,0.038473]
[1727201474271,12.97609712,2647.2,2647.1,0.038473]
[1727201475310,7.32871,2646.4,2646.3,0.038473]
[1727201475511,9.69980662,2646.4,2646.3,0.038473]
[1727201476044,7.32871,2646.4,2646.3,0.038473]
[1727201476362,9.69994581,2646.4,2646.3,0.038473]
[1727201476645,11.99236003,2646.4,2646.3,0.038473]
[1727201476804,16.61248475,2646.4,2646.3,0.038473]
[1727201477013,13.84609319,2646.4,2646.3,0.038473]
[1727201477433,12.75843237,2646.4,2646.3,0.038473]
[1727201477639,9.99364316,2646.4,2646.3,0.038473]
[1727201478605,12.36268893,2646.4,2646.3,0.038473]
[1727201479673,9.99364316,2646.4,2646.3,0.038473]
[1727201480346,12.36175034,2646.4,2646.3,0.038473]
[1727201480650,13.84609319,2646.4,2646.3,0.038473]
[1727201482461,16.60780641,2646.4,2646.3,0.038473]
[1727201482668,13.84609319,2646.4,2646.3,0.038473]
[1727201483339,11.87707665,2646.4,2646.3,0.038473]
[1727201483553,11.87707665,2646.4,2645.5,0.820373]
[1727201483554,3.77972,2645.7,2645.5,0.808846]
[1727201483767,6.77986,2645.6,2645.5,0.808846]
[1727201483963,7.96378931,2645.6,2645.5,0.026946]
[1727201484492,6.77986,2645.6,2645.5,0.026946]
[1727201484782,6.77986,2645.6,2645.5,0.08043037]
[1727201485144,6.77986,2645.6,2645.5,0.86233037]
[1727201485376,3.0,2645.6,2645.5,0.808846]
[1727201485955,3.0,2645.6,2645.5,0.86225757]
[1727201486769,3.0,2645.8,2645.5,0.86225757]
[1727201487144,3.0,2645.8,2645.5,0.808846]
[1727201487348,3.0,2645.8,2645.6,0.05333803]
[1727201487881,6.77958,2645.8,2645.6,0.05333803]
[1727201488513,3.0,2645.8,2645.6,0.05333803]
[1727201488779,6.77958,2645.8,2645.6,0.05333803]
[1727201488956,3.0,2645.8,2645.6,0.05333803]
[1727201489349,6.77959,2645.8,2645.6,0.05333803]
[1727201489745,3.0,2645.8,2645.6,0.05333803]
[1727201490061,6.77958,2645.8,2645.6,0.05333803]
[1727201490748,6.77958,2645.8,2645.5,0.808846]
[1727201491184,6.77958,2645.8,2645.6,0.05144176]
[1727201491405,3.0,2645.8,2645.6,0.05144176]
[1727201491717,3.77922,2646.1,2645.7,0.7819]
[1727201492025,3.0,2646.0,2645.7,1.29734053]
[1727201492184,3.0,2646.0,2645.7,0.83331675]
[1727201492580,3.0,2646.2,2645.7,0.83331675]
[1727201492901,3.77877,2646.4,2645.9,0.7819]
[1727201493104,1.57857241,2646.7,2646.0,4.61239359]
[1727201493105,4.96238931,2646.6,2646.0,4.61239359]
[1727201493312,3.77858,2646.5,2646.1,0.7896]
[1727201493692,4.96227931,2646.7,2646.2,0.05124327]
[1727201493990,3.77835,2646.7,2646.2,0.05124327]
[1727201494193,3.77844,2646.6,2646.2,0.05124327]
[1727201494398,3.0,2646.5,2646.2,0.05124327]
[1727201495017,6.77859,2646.5,2646.2,0.05124327]
[1727201495222,3.77835,2646.7,2646.2,0.05124327]
[1727201495381,3.0,2646.6,2646.3,0.7896]
[1727201495720,3.0,2646.6,2646.4,0.05093171]
[1727201496223,3.77857,2646.5,2646.4,0.05093171]
[1727201497215,3.0,2646.6,2646.4,0.05093171]
[1727201497513,6.77846,2646.6,2646.4,0.05093171]
[1727201497721,1.18392931,2646.9,2646.7,3.77828]
[1727201498022,1.18392931,2647.4,2646.8,0.84043658]
[1727201498200,3.77708,2647.6,2647.1,0.7896]
[1727201498552,1.18392931,2647.7,2647.2,0.05074631]
[1727201498849,3.77695,2647.7,2647.4,0.7896]
[1727201499143,3.77695,2647.7,2647.5,0.0506859]
[1727201499858,3.0,2647.6,2647.5,0.0506859]
[1727201500616,3.788107,2647.9,2647.5,0.0506859]
[1727201500934,0.011527,2647.9,2647.5,3.8278259]
[1727201501145,0.011527,2647.9,2647.0,7.63026003]
[1727201501146,3.77686,2647.7,2647.6,0.04897623]
[1727201501444,3.77686,2647.7,2647.0,0.7896]
[1727201501445,3.77701,2647.6,2647.0,0.7896]
[1727201501761,3.77701,2647.6,2646.3,0.7896]
[1727201501762,3.77816,2646.8,2646.3,0.7896]
[1727201501928,7.55643,2646.8,2646.3,0.7896]
[1727201502176,3.77816,2646.8,2646.3,1.246458]
[1727201502507,3.77829,2646.7,2646.3,1.246458]
[1727201502756,3.77859,2646.5,2646.4,0.04786225]
[1727201503215,3.77809,2646.9,2646.4,0.04786225]
[1727201503415,3.77809,2646.9,2646.5,0.7896]
[1727201503645,3.77781,2647.1,2646.5,0.8374421]
[1727201503646,3.0,2647.1,2646.5,0.8374421]
[1727201503945,3.77758,2647.2,2646.8,0.7896]
[1727201503946,6.77758,2647.2,2646.8,0.7896]
[1727201504107,3.0,2647.2,2646.8,4.56774]
[1727201504307,3.77723,2647.5,2647.0,0.7896]
[1727201504308,3.7773,2647.4,2647.0,0.7896]
[1727201504515,3.7773,2647.4,2647.1,0.04772121]
[1727201508281,3.77723,2647.5,2647.1,0.04772121]
[1727201508463,7.55451,2647.5,2647.1,0.04772121]
[1727201508992,3.77737,2647.4,2647.1,0.04772121]
[1727201509168,3.77757,2647.2,2647.1,0.04772121]
[1727201510206,3.77739,2647.4,2647.1,0.04772121]
[1727201510556,3.77751,2647.3,2647.1,0.04772121]
[1727201510762,3.77757,2647.2,2647.1,0.04772121]
[1727201514877,4.533056,2647.2,2647.1,0.04772121]
[1727201515201,7.55497,2647.3,2646.9,0.7899]
[1727201515418,7.55497,2647.3,2647.1,0.04794382]
[1727201515564,3.77743,2647.3,2647.0,0.04796397]
[1727201515765,3.77743,2647.3,2647.2,0.04792368]
[1727201515972,3.77743,2647.3,2647.1,0.04794382]
[1727201516308,3.77743,2647.3,2647.2,0.04792368]
[1727201516666,7.55494,2647.3,2646.9,0.7899]
[1727201516893,3.77743,2647.3,2647.2,0.04792368]
[1727201517066,3.77743,2647.3,2646.9,0.7899]
[1727201517704,3.77774,2647.1,2647.0,0.04796397]
[1727201519618,8.12781,2647.1,2647.0,0.04796397]
[1727201519900,7.57781,2647.1,2647.0,0.04796397]
[1727201520101,3.77836,2646.7,2646.1,4.56894]
[1727201520307,3.77849,2646.6,2646.1,4.56894]
[1727201520607,3.77857,2646.5,2646.2,0.04344008]
[1727201520772,7.55726,2646.5,2646.2,0.04344008]
[1727201520967,7.55727,2646.5,2646.2,0.04344008]
[1727201521208,3.8001,2647.1,2646.2,0.04344008]
[1727201521209,3.77838,2646.7,2646.2,0.04344008]
[1727201521383,3.77873,2646.4,2646.2,0.04344008]
[1727201521986,3.77886,2646.3,2646.2,0.04344008]
[1727201522215,4.534619,2646.3,2646.2,0.04344008]
[1727201522869,4.534619,2646.3,2645.7,0.7899]